fUST/lending_fUST_20240808
["ID","MTS","AMOUNT","RATE_DAILY","PERIOD"]
[334440686,1723101047465,-576.99,0.00027397,7]
[334440687,1723101047475,-576.99,0.00027397,7]
[334440688,1723101047484,-576.99,0.00027397,7]
[334440689,1723101047494,-500.0,0.00027397,7]
[334440690,1723101047505,-576.99,0.00027397,7]
[334440691,1723101047515,-576.99,0.00027397,7]
[334440692,1723101047524,-576.99,0.00027397,7]
[334440693,1723101047534,-576.99,0.00027397,7]
[334440694,1723101047543,-576.99,0.00027397,7]
[334440695,1723101047553,-500.0,0.00027397,7]
[334440696,1723101047562,-576.99,0.00027397,7]
[334440697,1723101047574,-576.99,0.00027397,7]
[334440698,1723101047584,-500.0,0.00027397,7]
[334440699,1723101047595,-576.99,0.00027397,7]
[334440700,1723101047604,-576.99,0.00027397,7]
[334440701,1723101047614,-577.14925933,0.00027397,7]
[334440702,1723101047624,-500.0,0.00027397,7]
[334440703,1723101047634,-500.0,0.00027397,7]
[334440704,1723101047644,-500.0,0.00027397,7]
[334440705,1723101047653,-500.0,0.00027397,7]
[334440706,1723101047663,-500.0,0.00027397,7]
[334440707,1723101047672,-500.0,0.00027397,7]
[334440708,1723101047682,-500.0,0.00027397,7]
[334440709,1723101047692,-500.0,0.00027397,7]
[334440710,1723101047703,-500.0,0.00027397,7]
[334440711,1723101047712,-500.0,0.00027397,7]
[334440712,1723101047722,-500.0,0.00027397,7]
[334440713,1723101047731,-500.0,0.00027397,7]
[334440714,1723101047741,-500.0,0.00027397,7]
[334440715,1723101047751,-500.0,0.00027397,7]
[334440716,1723101047760,-500.0,0.00027397,7]
[334440717,1723101047769,-500.0,0.00027397,7]
[334440718,1723101047779,-500.0,0.00027397,7]
[334440719,1723101047789,-1829.96,0.00027397,7]
[334440720,1723101047798,-500.0,0.00027397,7]
[334440721,1723101047807,-500.0,0.00027397,7]
[334440722,1723101047820,-500.0,0.00027397,7]
[334440723,1723101047830,-500.0,0.00027397,7]
[334440724,1723101047839,-500.0,0.00027397,7]
[334440725,1723101047849,-500.0,0.00027397,7]
[334440726,1723101047858,-500.0,0.00027397,2]
[334440727,1723101047867,-500.0,0.00027397,7]
[334440728,1723101047878,-500.0,0.00027397,7]
[334440729,1723101047888,-500.0,0.00027397,7]
[334440730,1723101047898,-446.91376089,0.00027397,7]
[334440731,1723101047908,-713.43,0.00027397,7]
[334440732,1723101047917,-500.0,0.00027397,7]
[334440733,1723101047927,-502.83566278,0.00027397,7]
[334440734,1723101047937,-500.0,0.00027397,7]
[334440735,1723101047946,-500.65393547,0.00027397,7]
[334440736,1723101047956,-510.11473304,0.00027397,7]
[334440737,1723101047966,-1376.71,0.00027397,7]
[334440738,1723101047975,-500.0,0.00027397,7]
[334440739,1723101047984,-500.0,0.00027397,7]
[334440740,1723101047994,-586.93,0.00027397,7]
[334440741,1723101048003,-500.0,0.00027397,7]
[334440742,1723101048013,-500.0,0.00027397,7]
[334440743,1723101048023,-500.0,0.00027397,7]
[334440744,1723101048032,-151.0,0.00027397,7]
[334440745,1723101048042,-500.0,0.00027397,7]
[334440746,1723101048052,-500.0,0.00027397,7]
[334440747,1723101048061,-500.0,0.00027397,7]
[334440748,1723101048073,-500.0,0.00027397,7]
[334440749,1723101048083,-4330.26,0.00027397,7]
[334440750,1723101048092,-4330.26,0.00027397,7]
[334440751,1723101048102,-507.63696915,0.00027397,7]
[334440752,1723101048112,-500.0,0.00027397,7]
[334440753,1723101048122,-4330.26,0.00027397,7]
[334440754,1723101048132,-416.28673535,0.00027397,7]
[334440755,1723101048141,-4330.26,0.00027397,7]
[334440756,1723101048152,-4330.26,0.00027397,7]
[334440757,1723101048162,-4330.26,0.00027397,7]
[334440758,1723101048172,-4330.26,0.00027397,7]
[334440759,1723101048182,-500.58,0.00027397,7]
[334440760,1723101048192,-4330.26,0.00027397,7]
[334440761,1723101048202,-500.0,0.00027397,7]
[334440762,1723101048212,-4225.77,0.00027397,7]
[334440763,1723101048222,-534.55733801,0.00027397,7]
[334440764,1723101048232,-500.0,0.00027397,7]
[334440765,1723101048242,-1193.37,0.00027397,7]
[334440766,1723101048252,-2875.28,0.00027397,7]
[334440767,1723101048262,-500.0,0.00027397,7]
[334440768,1723101048272,-151.0,0.00027397,7]
[334440769,1723101048283,-845.58,0.00027397,7]
[334440770,1723101048293,-500.0,0.00027397,7]
[334440771,1723101048303,-151.0,0.00027397,7]
[334440772,1723101048312,-500.0,0.00027397,7]
[334440773,1723101048325,-1926.76,0.00027397,7]
[334440774,1723101048334,-500.0,0.00027397,7]
[334440775,1723101048343,-501.48401795,0.00027397,7]
[334440776,1723101048353,-502.42471417,0.00027397,7]
[334440777,1723101048363,-501.50656828,0.00027397,7]
[334440778,1723101048372,-500.0,0.00027397,7]
[334440779,1723101048382,-1150.26,0.00027397,7]
[334440780,1723101048392,-500.0,0.00027397,7]
[334440781,1723101048402,-500.0,0.00027397,7]
[334440782,1723101048412,-500.0,0.00027397,7]
[334440783,1723101048423,-500.0,0.00027397,7]
[334440784,1723101048436,-500.0,0.00027397,7]
[334440785,1723101048445,-500.0,0.00027397,7]
[334440786,1723101048455,-500.0,0.00027397,7]
[334440787,1723101048466,-500.0,0.00027397,7]
[334440788,1723101048476,-500.0,0.00027397,7]
[334440789,1723101048486,-500.0,0.00027397,7]
[334440790,1723101048496,-500.0,0.00027397,7]
[334440791,1723101048505,-500.0,0.00027397,7]
[334440792,1723101048516,-500.0,0.00027397,7]
[334440793,1723101048527,-500.0,0.00027397,7]
[334440794,1723101048536,-500.0,0.00027397,7]
[334440795,1723101048546,-500.0,0.00027397,7]
[334440796,1723101048557,-500.0,0.00027397,7]
[334440797,1723101048567,-500.0,0.00027397,7]
[334440798,1723101048578,-500.0,0.00027397,7]
[334440799,1723101048588,-328.13180136,0.00027397,7]
[334440800,1723101048597,-500.0,0.00027397,7]
[334440801,1723101048607,-503.53223394,0.00027397,7]
[334440802,1723101048617,-558.78990627,0.00027397,7]
[334440803,1723101048627,-505.13645794,0.00027397,7]
[334440804,1723101048637,-151.0,0.00027397,7]
[334440805,1723101048646,-500.0,0.00027397,7]
[334440806,1723101048657,-500.0,0.00027397,7]
[334440807,1723101048666,-151.0,0.00027397,7]
[334440808,1723101048676,-500.0,0.00027397,7]
[334440809,1723101048686,-500.0,0.00027397,7]
[334440810,1723101048696,-3440.25,0.00027397,7]
[334440811,1723101048706,-500.0,0.00027397,7]
[334440812,1723101048716,-501.09278472,0.00027397,7]
[334440813,1723101048727,-2175.03,0.00027397,7]
[334440814,1723101048737,-2558.65,0.00027397,7]
[334440815,1723101048747,-2067.39,0.00027397,7]
[334440816,1723101048757,-500.0,0.00027397,7]
[334440817,1723101048767,-500.0,0.00027397,7]
[334440818,1723101048777,-500.0,0.00027397,7]
[334440819,1723101048786,-500.0,0.00027397,7]
[334440820,1723101048796,-500.71221557,0.00027397,7]
[334440821,1723101048806,-500.0,0.00027397,7]
[334440822,1723101048820,-368.56354469,0.00027397,14]
[334440823,1723101049055,-131.43645531,0.00027397,14]
[334440824,1723101049064,-500.0,0.00027397,14]
[334440825,1723101049080,-1720.32,0.00027397,7]
[334440826,1723101049089,-500.0,0.00027397,14]
[334440827,1723101049099,-2328.8,0.00027397,7]
[334440828,1723101049109,-409.20998101,0.00027397,14]
[334440829,1723101049323,-494.194417,0.0001611,2]
[334440830,1723101049333,-90.79001899,0.00027397,14]
[334440831,1723101049344,-500.0,0.00027397,14]
[334440832,1723101049353,-500.0,0.00027397,14]
[334440833,1723101049363,-500.0,0.00027397,14]
[334440834,1723101049373,-168.63898711,0.00027397,14]
[334440835,1723101049407,-179.25001641,0.00027397,14]
[334440836,1723101049432,-152.11099648,0.00027397,14]
[334440837,1723101049443,-307.88417958,0.00027397,14]
[334440838,1723101049453,-500.53535496,0.00027397,7]
[334440839,1723101049463,-233.20937306,0.00027397,7]
[334440840,1723101049474,-500.0,0.00027397,7]
[334440841,1723101049483,-977.01,0.00027397,7]
[334440842,1723101049494,-977.01,0.00027397,7]
[334440843,1723101049503,-977.01,0.00027397,7]
[334440844,1723101049514,-977.01,0.00027397,7]
[334440845,1723101049524,-977.01,0.00027397,7]
[334440846,1723101049534,-500.0,0.00027397,7]
[334440847,1723101049704,-977.01,0.00027397,7]
[334440848,1723101049715,-977.01,0.00027397,7]
[334440849,1723101049725,-977.01,0.00027397,7]
[334440850,1723101049735,-977.01,0.00027397,7]
[334440851,1723101049745,-977.01,0.00027397,7]
[334440852,1723101049755,-977.01,0.00027397,7]
[334440853,1723101049764,-977.01,0.00027397,7]
[334440854,1723101049774,-977.01,0.00027397,7]
[334440855,1723101049784,-977.01,0.00027397,7]
[334440856,1723101049793,-977.01,0.00027397,7]
[334440857,1723101049804,-977.01,0.00027397,7]
[334440858,1723101049817,-977.01,0.00027397,7]
[334440859,1723101049827,-977.01,0.00027397,7]
[334440860,1723101049837,-977.01,0.00027397,7]
[334440861,1723101049846,-977.01,0.00027397,7]
[334440862,1723101049857,-977.01,0.00027397,7]
[334440863,1723101049867,-977.01,0.00027397,7]
[334440864,1723101049879,-977.01,0.00027397,7]
[334440865,1723101049889,-977.2278568,0.00027397,7]
[334440866,1723101049899,-500.0,0.00027397,7]
[334440867,1723101049909,-500.0,0.00027397,7]
[334440868,1723101049918,-500.0,0.00027397,7]
[334440869,1723101049928,-500.0,0.00027397,7]
[334440870,1723101049938,-500.0,0.00027397,7]
[334440871,1723101049948,-2231.32,0.00027397,7]
[334440872,1723101049958,-500.0,0.00027397,7]
[334440873,1723101049968,-2541.68,0.00027397,7]
[334440874,1723101049977,-500.0,0.00027397,7]
[334440875,1723101049987,-500.0,0.00027397,7]
[334440876,1723101049996,-587.63,0.00027397,7]
[334440877,1723101050006,-500.0,0.00027397,7]
[334440878,1723101050016,-500.0,0.00027397,7]
[334440879,1723101050026,-502.0595462,0.00027397,7]
[334440880,1723101050036,-11469.11,0.00027397,7]
[334440881,1723101050046,-500.0,0.00027397,7]
[334440882,1723101050055,-500.0,0.00027397,7]
[334440883,1723101050067,-500.0,0.00027397,7]
[334440884,1723101050077,-563.82,0.00027397,7]
[334440885,1723101050087,-500.0,0.00027397,7]
[334440886,1723101050096,-500.0,0.00027397,7]
[334440887,1723101050105,-501.67385244,0.00027397,7]
[334440888,1723101050115,-963.43,0.00027397,7]
[334440889,1723101050125,-500.0,0.00027397,7]
[334440890,1723101050134,-500.0,0.00027397,7]
[334440891,1723101050144,-500.0,0.00027397,7]
[334440892,1723101050154,-431.87682012,0.00027397,7]
[334440893,1723101050165,-700.6,0.00027397,7]
[334440894,1723101050174,-500.0,0.00027397,7]
[334440895,1723101050184,-500.0,0.00027397,7]
[334440896,1723101050195,-500.0,0.00027397,7]
[334440897,1723101050204,-500.0,0.00027397,7]
[334440898,1723101050214,-500.0,0.00027397,7]
[334440899,1723101050223,-611.79,0.00027397,7]
[334440900,1723101050233,-500.0,0.00027397,7]
[334440901,1723101050244,-897.21,0.00027397,7]
[334440902,1723101050254,-3046.24,0.00027397,7]
[334440903,1723101050264,-500.0,0.00027397,7]
[334440904,1723101050274,-500.0,0.00027397,7]
[334440905,1723101050284,-500.0,0.00027397,7]
[334440906,1723101050293,-500.0,0.00027397,7]
[334440907,1723101050303,-500.0,0.00027397,7]
[334440908,1723101050313,-500.0,0.00027397,7]
[334440909,1723101050325,-500.0,0.00027397,7]
[334440910,1723101050334,-500.0,0.00027397,7]
[334440911,1723101050343,-500.0,0.00027397,7]
[334440912,1723101050352,-500.0,0.00027397,7]
[334440913,1723101050361,-500.0,0.00027397,7]
[334440914,1723101050371,-500.0,0.00027397,7]
[334440915,1723101050381,-644.44087922,0.00027397,7]
[334440916,1723101050390,-500.76420498,0.00027397,7]
[334440917,1723101050402,-500.0,0.00027397,7]
[334440918,1723101050412,-1859.55,0.00027397,7]
[334440919,1723101050425,-500.0,0.00027397,7]
[334440920,1723101050438,-504.1102058,0.00027397,7]
[334440921,1723101050449,-500.0,0.00027397,7]
[334440922,1723101050459,-1977.64,0.00027397,7]
[334440923,1723101050470,-503.21027362,0.00027397,7]
[334440924,1723101050480,-500.0,0.00027397,7]
[334440925,1723101050490,-501.22501827,0.00027397,7]
[334440926,1723101050499,-1268.44,0.00027397,7]
[334440927,1723101050511,-500.0,0.00027397,7]
[334440928,1723101050521,-500.0,0.00027397,7]
[334440929,1723101050532,-500.0,0.00027397,7]
[334440930,1723101050542,-622.01,0.00027397,7]
[334440931,1723101050551,-2979.3,0.00027397,7]
[334440932,1723101050561,-328.64055546,0.00027397,5]
[334440933,1723101050571,-500.0,0.00027397,7]
[334440934,1723101050581,-500.0,0.00027397,7]
[334440935,1723101050591,-500.0,0.00027397,7]
[334440936,1723101050601,-500.0,0.00027397,7]
[334440937,1723101050612,-382.22013887,0.00027397,7]
[334440938,1723101050621,-500.0,0.00027397,7]
[334440939,1723101050631,-500.0,0.00027397,7]
[334440940,1723101050640,-500.0,0.00027397,7]
[334440941,1723101050649,-1413.85,0.00027397,7]
[334440942,1723101050659,-502.26254289,0.00027397,7]
[334440943,1723101050669,-500.0,0.00027397,7]
[334440944,1723101050678,-1148.53,0.00027397,7]
[334440945,1723101050688,-500.0,0.00027397,7]
[334440946,1723101050698,-7911.78,0.00027397,7]
[334440947,1723101050707,-1226.61,0.00027397,7]
[334440948,1723101050717,-500.0,0.00027397,7]
[334440949,1723101050727,-660.89,0.00027397,7]
[334440950,1723101050736,-1192.69,0.00027397,7]
[334440951,1723101050747,-1096.06,0.00027397,7]
[334440952,1723101050757,-1452.49,0.00027397,7]
[334440953,1723101050767,-697.43,0.00027397,7]
[334440954,1723101050778,-500.0,0.00027397,7]
[334440955,1723101050788,-532.03624591,0.00027397,7]
[334440956,1723101050797,-459.64512325,0.00027397,7]
[334440957,1723101050807,-1635.85,0.00027397,7]
[334440958,1723101050818,-500.0,0.00027397,7]
[334440959,1723101050828,-3081.22,0.00027397,7]
[334440960,1723101050838,-500.0,0.00027397,7]
[334440961,1723101050847,-7741.86,0.00027397,7]
[334440962,1723101050856,-500.0,0.00027397,7]
[334440963,1723101050866,-2436.54,0.00027397,7]
[334440964,1723101050876,-500.0,0.00027397,7]
[334440965,1723101050886,-500.0,0.00027397,7]
[334440966,1723101050897,-500.0,0.00027397,7]
[334440967,1723101050908,-500.0,0.00027397,7]
[334440968,1723101050919,-500.0,0.00027397,7]
[334440969,1723101050929,-500.0,0.00027397,7]
[334440970,1723101050939,-500.0,0.00027397,7]
[334440971,1723101050948,-552.55823408,0.00027397,7]
[334440972,1723101050959,-500.0,0.00027397,7]
[334440973,1723101050969,-509.25680947,0.00027397,7]
[334440974,1723101050978,-500.0,0.00027397,7]
[334440975,1723101050989,-1114.82,0.00027397,7]
[334440976,1723101050998,-677.7,0.00027397,7]
[334440977,1723101051008,-500.0,0.00027397,7]
[334440978,1723101051018,-1844.78,0.00027397,7]
[334440979,1723101051028,-500.0,0.00027397,7]
[334440980,1723101051037,-500.0,0.00027397,7]
[334440981,1723101051047,-500.0,0.00027397,7]
[334440982,1723101051056,-500.0,0.00027397,7]
[334440983,1723101051068,-500.0,0.00027397,7]
[334440984,1723101051077,-500.0,0.00027397,7]
[334440985,1723101051086,-1966.04,0.00027397,7]
[334440986,1723101051096,-500.0,0.00027397,7]
[334440987,1723101051106,-500.0,0.00027397,7]
[334440988,1723101051116,-500.0,0.00027397,7]
[334440989,1723101051126,-5078.65,0.00027397,7]
[334440990,1723101051135,-5001.99,0.00027397,7]
[334440991,1723101051145,-500.0,0.00027397,7]
[334440992,1723101051155,-500.0,0.00027397,7]
[334440993,1723101051164,-500.0,0.00027397,7]
[334440994,1723101051173,-824.18,0.00027397,7]
[334440995,1723101051183,-558.97232804,0.00027397,7]
[334440996,1723101051192,-500.0,0.00027397,7]
[334440997,1723101051203,-500.0,0.00027397,7]
[334440998,1723101051213,-602.72,0.00027397,7]
[334440999,1723101051223,-500.0,0.00027397,7]
[334441000,1723101051233,-500.0,0.00027397,7]
[334441001,1723101051242,-276.171778,0.00027397,7]
[334441002,1723101051252,-1597.62,0.00027397,7]
[334441003,1723101051261,-500.0,0.00027397,7]
[334441004,1723101051271,-500.0,0.00027397,7]
[334441005,1723101051280,-3115.73,0.00027397,7]
[334441006,1723101051290,-500.0,0.00027397,7]
[334441007,1723101051299,-982.05,0.00027397,7]
[334441008,1723101051309,-500.0,0.00027397,7]
[334441009,1723101051323,-518.28,0.00027397,7]
[334441010,1723101051333,-500.0,0.00027397,7]
[334441011,1723101051343,-518.28,0.00027397,7]
[334441012,1723101051352,-518.28,0.00027397,7]
[334441013,1723101051362,-510.48715346,0.00027397,7]
[334441014,1723101051372,-518.28,0.00027397,7]
[334441015,1723101051382,-518.28,0.00027397,7]
[334441016,1723101051391,-1290.7,0.00027397,7]
[334441017,1723101051401,-518.28,0.00027397,7]
[334441018,1723101051410,-518.28,0.00027397,7]
[334441019,1723101051419,-518.28,0.00027397,7]
[334441020,1723101051431,-518.28,0.00027397,7]
[334441021,1723101051441,-518.28,0.00027397,7]
[334441022,1723101051450,-518.28,0.00027397,7]
[334441023,1723101051460,-518.28,0.00027397,7]
[334441024,1723101051471,-518.28,0.00027397,7]
[334441025,1723101051481,-518.28,0.00027397,7]
[334441026,1723101051491,-500.0,0.00027397,7]
[334441027,1723101051502,-518.28,0.00027397,7]
[334441028,1723101051512,-518.28,0.00027397,7]
[334441029,1723101051522,-518.28,0.00027397,7]
[334441030,1723101051532,-500.0,0.00027397,7]
[334441031,1723101051543,-518.28,0.00027397,7]
[334441032,1723101051552,-518.28,0.00027397,7]
[334441033,1723101051563,-661.51,0.00027397,7]
[334441034,1723101051576,-518.28,0.00027397,7]
[334441035,1723101051585,-518.28,0.00027397,7]
[334441036,1723101051594,-518.28,0.00027397,7]
[334441037,1723101051604,-518.28,0.00027397,7]
[334441038,1723101051613,-518.44165657,0.00027397,7]
[334441039,1723101051622,-500.0,0.00027397,7]
[334441040,1723101051631,-500.0,0.00027397,7]
[334441041,1723101051641,-500.0,0.00027397,7]
[334441042,1723101051650,-504.03403826,0.00027397,7]
[334441043,1723101051659,-841.84,0.00027397,7]
[334441044,1723101051669,-500.0,0.00027397,7]
[334441045,1723101051678,-500.0,0.00027397,7]
[334441046,1723101051687,-500.0,0.00027397,7]
[334441047,1723101051697,-500.0,0.00027397,7]
[334441048,1723101051708,-1361.25,0.00027397,7]
[334441049,1723101051718,-501.35152801,0.00027397,7]
[334441050,1723101051729,-501.45938661,0.00027397,7]
[334441051,1723101051738,-500.0,0.00027397,7]
[334441052,1723101051748,-1258.0,0.00027397,7]
[334441053,1723101051758,-501.31996922,0.00027397,7]
[334441054,1723101051767,-500.0,0.00027397,7]
[334441055,1723101051776,-1039.72,0.00027397,7]
[334441056,1723101051786,-500.0,0.00027397,7]
[334441058,1723101051795,-505.26955918,0.00027397,7]
[334441059,1723101051804,-586.63,0.00027397,7]
[334441061,1723101051814,-646.07,0.00027397,7]
[334441062,1723101051828,-1024.18,0.00027397,7]
[334441064,1723101051837,-674.76,0.00027397,7]
[334441066,1723101051846,-500.0,0.00027397,7]
[334441068,1723101051855,-403.46417479,0.00027397,60]
[334441069,1723101051865,-150.112233,0.000274,9]
[334441071,1723101051877,-150.112234,0.000274,10]
[334441072,1723101051888,-150.112233,0.000274,6]
[334441074,1723101051897,-150.112233,0.000274,6]
[334441076,1723101051907,-157.770575,0.00027455,2]
[334441078,1723101051916,-184.37837,0.00027455,2]
[334441080,1723101051927,-158.012498,0.00027455,2]
[334441082,1723101051936,-183.886645,0.00027455,2]
[334441084,1723101051946,-151.0,0.00027499,7]
[334441086,1723101051955,-207.647671,0.00027499,7]
[334441088,1723101051965,-705.935432,0.00027499,7]
[334441090,1723101051974,-207.647671,0.00027499,7]
[334441092,1723101051984,-705.935432,0.00027499,7]
[334441094,1723101051994,-751.75319,0.00027499,7]
[334441096,1723101052003,-751.75319,0.00027499,7]
[334441098,1723101052013,-228.045377,0.00027499,7]
[334441100,1723101052023,-228.045377,0.00027499,7]
[334441102,1723101052032,-429.286318,0.00027499,2]
[334441104,1723101052042,-429.286318,0.00027499,2]
[334441106,1723101052051,-151.0,0.00027499,7]
[334441108,1723101052061,-151.0,0.00027499,7]
[334441110,1723101052072,-321.0,0.00027499,2]
[334441112,1723101052082,-321.0,0.00027499,2]
[334441114,1723101052091,-321.0,0.00027499,2]
[334441116,1723101052100,-321.0,0.00027499,2]
[334441118,1723101052110,-321.0,0.00027499,2]
[334441120,1723101052119,-563.0,0.00027499,2]
[334441122,1723101052129,-563.0,0.00027499,2]
[334441124,1723101052139,-563.0,0.00027499,2]
[334441126,1723101052148,-563.0,0.00027499,2]
[334441128,1723101052157,-563.0,0.00027499,2]
[334441135,1723101052220,-563.0,0.00027499,2]
[334441137,1723101052229,-563.0,0.00027499,2]
[334441139,1723101052238,-563.0,0.00027499,2]
[334441141,1723101052247,-321.0,0.00027499,2]
[334441143,1723101052257,-321.0,0.00027499,2]
[334441145,1723101052266,-321.0,0.00027499,2]
[334441146,1723101052275,-321.0,0.00027499,2]
[334441148,1723101052285,-321.0,0.00027499,2]
[334441150,1723101052295,-321.0,0.00027499,2]
[334441152,1723101052304,-321.0,0.00027499,2]
[334441154,1723101052313,-321.0,0.00027499,2]
[334441156,1723101052324,-321.0,0.00027499,2]
[334441158,1723101052333,-321.0,0.00027499,2]
[334441159,1723101052343,-321.0,0.00027499,2]
[334441160,1723101052351,-321.0,0.00027499,2]
[334441161,1723101052361,-321.0,0.00027499,2]
[334441162,1723101052370,-321.0,0.00027499,2]
[334441163,1723101052379,-563.0,0.00027499,2]
[334441164,1723101052388,-563.0,0.00027499,2]
[334441165,1723101052398,-563.0,0.00027499,2]
[334441166,1723101052408,-563.0,0.00027499,2]
[334441167,1723101052417,-563.0,0.00027499,2]
[334441168,1723101052427,-563.0,0.00027499,2]
[334441169,1723101052439,-563.0,0.00027499,2]
[334441170,1723101052448,-563.0,0.00027499,2]
[334441171,1723101052457,-563.0,0.00027499,2]
[334441172,1723101052466,-563.0,0.00027499,2]
[334441173,1723101052475,-563.0,0.00027499,2]
[334441174,1723101052484,-563.0,0.00027499,2]
[334441175,1723101052494,-563.0,0.00027499,2]
[334441176,1723101052503,-563.0,0.00027499,2]
[334441177,1723101052514,-321.0,0.00027499,2]
[334441178,1723101052524,-321.0,0.00027499,2]
[334441179,1723101052534,-321.0,0.00027499,2]
[334441180,1723101052545,-321.0,0.00027499,2]
[334441181,1723101052556,-321.0,0.00027499,2]
[334441182,1723101052568,-321.0,0.00027499,2]
[334441183,1723101052582,-321.0,0.00027499,2]
[334441184,1723101052591,-321.0,0.00027499,2]
[334441185,1723101052601,-321.0,0.00027499,2]
[334441186,1723101052610,-321.0,0.00027499,2]
[334441187,1723101052619,-321.0,0.00027499,2]
[334441188,1723101052628,-321.0,0.00027499,2]
[334441189,1723101052637,-321.0,0.00027499,2]
[334441190,1723101052646,-321.0,0.00027499,2]
[334441191,1723101052655,-563.0,0.00027499,2]
[334441192,1723101052664,-563.0,0.00027499,2]
[334441193,1723101052673,-563.0,0.00027499,2]
[334441194,1723101052682,-563.0,0.00027499,2]
[334441195,1723101052692,-563.0,0.00027499,2]
[334441196,1723101052701,-563.0,0.00027499,2]
[334441197,1723101052712,-563.0,0.00027499,2]
[334441198,1723101052723,-563.0,0.00027499,2]
[334441199,1723101052732,-563.0,0.00027499,2]
[334441200,1723101052743,-563.0,0.00027499,2]
[334441201,1723101052753,-563.0,0.00027499,2]
[334441202,1723101052762,-563.0,0.00027499,2]
[334441203,1723101052771,-563.0,0.00027499,2]
[334441204,1723101052781,-563.0,0.00027499,2]
[334441205,1723101052791,-150.112233,0.000275,6]
[334441206,1723101052800,-151.0,0.00027528,4]
[334441207,1723101052809,-151.0,0.00027528,4]
[334441208,1723101052821,-150.112233,0.000276,7]
[334441209,1723101052830,-3000.0,0.000276,2]
[334441210,1723101052840,-281.958953,0.0002761,7]
[334441211,1723101052849,-153.326434,0.0002761,7]
[334441212,1723101052858,-151.0,0.0002761,7]
[334441213,1723101052868,-151.0,0.0002761,7]
[334441214,1723101052879,-151.0,0.0002761,7]
[334441215,1723101052889,-151.0,0.0002761,7]
[334441216,1723101052899,-151.0,0.0002761,7]
[334441217,1723101052908,-151.0,0.0002761,7]
[334441218,1723101052918,-3000.0,0.0002761,2]
[334441219,1723101052928,-151.0,0.0002761,7]
[334441220,1723101052938,-151.555561,0.0002761,7]
[334441221,1723101052947,-728.583114,0.0002761,7]
[334441223,1723101052957,-728.583114,0.0002761,7]
[334441225,1723101052966,-151.0,0.0002762,7]
[334441227,1723101052976,-151.0,0.0002762,7]
[334441229,1723101052986,-151.0,0.0002762,7]
[334441231,1723101052996,-151.0,0.0002762,7]
[334441233,1723101053005,-151.0,0.0002762,7]
[334441235,1723101053015,-151.0,0.0002762,7]
[334441237,1723101053024,-4859.05,0.0002762,2]
[334441239,1723101053034,-151.0,0.00027653,7]
[334441241,1723101053043,-153.324551,0.00027653,7]
[334441243,1723101053052,-151131.64497264,0.00027669,2]
[334441254,1723101053661,-302.46027515,0.00027256,3]
[334441255,1723101053673,-545.34,0.00027256,3]
[334441256,1723101053685,-519.4026087,0.00027256,3]
[334441263,1723101157380,273.37336231,9.9e-05,2]